Cogmind - Beta 15 @@@ ROGUE MODE // 2025.10.09 @ 20:29:37 Player: ElandEm Result: Destroyed by G-47 Trooper with Particle Gun Performance ------------- Evolutions (0) 0 Regions Visited (1) 200 Robots Destroyed (13) 65 Value Destroyed (276) 276 Prototype IDs (0) 0 Alien Tech Used (0) 0 Bonus (0) 0 TOTAL SCORE: 541 Bonus ------- None Cogmind --------- Core Integrity 0/250 Matter 300/300 Energy 100/100 System Corruption 0% Temperature Cool (27) Movement Core (50) Location -10/Materials Parts ------- > --- POWER (1) -------- (None) > --- PROPULSION (2) --- (None) > --- UTILITY (2) ------ (None) > --- WEAPON (2) ------- (None) > --- INVENTORY (5) ---- Seismic Detector Peak State ------------ > --- POWER ------------ Ion Engine > --- PROPULSION ------- Flight Unit Flight Unit > --- UTILITY ---------- Small Storage Unit Seismic Detector > --- WEAPON ----------- EM Pulse Gun EM Pulse Gun > --- INVENTORY -------- Light Ion Engine Light Ion Engine Aluminum Leg Aluminum Leg Mining Laser [Rating: 7] Favorites ----------- Power Ion Engine Engine Ion Engine Propulsion Wheel Wheel Wheel Flight Unit Flight Unit Utility Seismic Detector Device Seismic Detector Storage High-capacity Battery Weapon EM Pulse Gun Energy Gun EM Pulse Gun Special Weapon Welding Torch Special Melee Weapon Datajack Build | -11 -10 ------- Run | Yrd Mat Slots Evolved . | . . Power . | . . Propulsion . | . . Utility . | . . Weapon . | . . Parts Attached 15 | 5 10 Power 2 | 1 1 Engine 2 | 1 1 Core . | . . Reactor . | . . Propulsion 4 | . 4 Treads . | . . Leg . | . . Wheel 2 | . 2 Hover . | . . Flight 2 | . 2 Utility 4 | 2 2 Device 2 | 1 1 Storage 2 | 1 1 Processor . | . . Hackware . | . . Protection . | . . Artifact . | . . Weapon 5 | 2 3 Energy Gun 2 | 2 . Energy Cannon . | . . Ballistic Gun . | . . Ballistic Cannon . | . . Launcher . | . . Special Weapon 2 | . 2 Impact Weapon . | . . Slashing Weapon . | . . Piercing Weapon . | . . Special Melee Weapon 1 | . 1 Unidentified Prototypes . | . . Parts Lost 10 | . 10 Power 1 | . 1 Propulsion 3 | . 3 Utility 2 | . 2 Weapon 4 | . 4 Highest Loss Streak 6 | . 6 To Critical Strikes . | . . Average Backups 2 | 3 2 Power . | 1 . Propulsion 1 | 1 1 Utility . | . . Weapon . | . . Tool/Special . | . . Unused Backups 5 | . 5 Power 1 | . 1 Propulsion 4 | . 4 Utility . | . . Weapon . | . . Tool/Special . | . . Average Slot Usage (%) 76 | . 76 Engine 7 | . 7 Wheel 11 | . 11 Flight 6 | . 6 Device 12 | . 12 Storage 13 | . 13 Energy Gun 15 | . 15 Special Weapon 5 | . 5 Special Melee Weapon 2 | . 2 Peak Build Rating 7 | 5 7 Average Rating 5 | 4 5 On Entrance 2 | . 5 Naked Turns 2 | . 2 Heaviest Build 15 | 15 15 Greatest Support 20 | 3 20 Greatest Overweight (x) 4 | 4 4 Average Overweight (x) 1 | 3 . Largest Inventory Capacity 8 | 8 8 Average Capacity 6 | 7 6 Most Carried 7 | 5 7 Average Carried 2 | 3 2 Final Capacity 8 | 8 5 Final Carried 5 | 5 1 Class Distribution -------------------- 90% | Mutant 9% | Scavenger-Mutant Dominant Class ---------------- Mutant | -10/Materials Resources | -11 -10 ----------- Run | Yrd Mat Matter Collected 345 | 250 95 Remotely . | . . Salvage Created 470 | 108 362 Parts 23 | 5 18 Haulers Intercepted . | . . Recyclers Shooed 1 | 1 . Parts Field Recycled . | . . Retrieved Matter . | . . Parts Self-Destructed . | . . Prevented . | . . Kills | -11 -10 ------- Run | Yrd Mat Combat Hostiles Destroyed 8 | . 8 Guns 5 | . 5 Cannons 1 | . 1 AOE 1 | . 1 Classes Destroyed 6 | 2 4 Builder 1 | . 1 Tunneler 1 | 1 . Recycler 2 | 1 1 Watcher 1 | . 1 Swarmer 3 | . 3 Grunt 5 | . 5 Best Kill Streak 3 | 2 3 Combat Bots Only 3 | . 3 Max Kills in Single Turn 2 | 1 2 Gunslinging 1 | . 1 Exploded 1 | . 1 Melee . | . . Uniques/NPCs Destroyed . | . . Combat | -11 -10 -------- Run | Yrd Mat Hostile Shots Fired 68 | . 68 Missed 11 | . 11 Hits 57 | . 57 Projectile 57 | . 57 Critical Strikes 2 | . 2 Damage Taken 722 | . 722 Core 258 | . 258 Absorbed by Shields . | . . Core Remaining (%) 100 | 100 . Volleys Fired 70 | 10 60 Largest 2 | 2 2 Hottest 100 | 80 100 Shots Fired 99 | 20 79 Gun 60 | 20 40 Cannon . | . . Launcher . | . . Special 39 | . 39 Kinetic . | . . Thermal 39 | . 39 Explosive . | . . Electromagnetic 60 | 20 40 Robot Hit Streak 7 | 2 7 Robot Miss Streak 4 | 4 4 Penetration Max . | . . Secondary Targets 1 | . 1 Max Gunslinging Chain 1 | . 1 Shots Hit Robots 49 | 9 40 Core Hits 22 | 3 19 Critical Kills . | . . Critical Parts Destroyed . | . . Critical Strikes 2 | . 2 Corrupt 2 | . 2 Melee Attacks 1 | . 1 Impact . | . . Slashing . | . . Piercing . | . . Sneak Attacks . | . . Combat Hostiles . | . . Follow-up Attacks . | . . Damage Inflicted 819 | 120 699 Guns 512 | 120 392 Cannons . | . . Explosions 207 | . 207 Melee . | . . Ramming . | . . Kinetic . | . . Thermal 307 | . 307 Explosive . | . . Electromagnetic 512 | 120 392 Impact . | . . Slashing . | . . Piercing . | . . Highest Corruption . | . . Average Corruption . | . . Corruption Purged . | . . Corruption Blocked . | . . Overload Shots . | . . Overflow Damage 6 | . 6 Projectiles . | . . Explosions 6 | . 6 Melee . | . . Knockbacks . | . . Impact . | . . Kinetic . | . . Secondary . | . . Self-Inflicted Damage 48 | . 48 Shots 1 | . 1 Rammed . | . . Targets Rammed . | . . Kicked . | . . Crushed . | . . Highest Temperature 114 | 72 114 Average Temperature 37 | 34 38 Received Heat Transfer 384 | . 384 Siege Activations . | . . Martial Activations . | . . Shielding Activations . | . . Robots Disrupted . | . . Combat Hostiles . | . . Robots Corrupted 1 | . 1 Combat Hostiles 1 | . 1 Parts Fried 3 | . 3 Impact Corruptions . | . . Robots Melted . | . . Combat Hostiles . | . . Parts Melted . | . . Heat Transferred 575 | . 575 Parts Sabotaged . | . . Parts Stolen . | . . Parts Stripped . | . . Power Chain Reactions 2 | . 2 Alert | -11 -10 ------- Run | Yrd Mat Maximum Alert Level . | . . Low Security (%) 100 | 100 100 Level 1 . | . . Level 2 . | . . Level 3 . | . . Level 4 . | . . Level 5 . | . . High Security . | . . Max Security . | . . Peak Influence 99 | 5 99 Initial . | . . Average 26 | . 34 Influence Increases 297 | 10 287 Destroy 0b10 Robot/C 160 | . 160 Destroy 0b10 Robot/NC 25 | 10 15 Destroy Leader 42 | . 42 Disable Machine 15 | . 15 Destroy Structure 10 | . 10 Lose Combat Pursuer 45 | . 45 Influence Decreases 297 | 10 287 Time Decay 252 | 10 242 Lost Part 45 | . 45 Squads Dispatched 1 | . 1 Investigation . | . . Extermination . | . . Reinforcement 1 | . 1 Assault . | . . Garrison . | . . Intercept . | . . Searches Triggered . | . . Construction Impeded . | . . Haulers Reinforced . | . . Active Scanning Responses . | . . Cargo Convoy Interrupts . | . . Stealth | -11 -10 --------- Run | Yrd Mat Distress Signals 1 | . 1 Communications Jammed . | . . Distress Signals . | . . Times Spotted 17 | . 17 Peak Tracking Total 3 | . 3 Tactical Retreats 2 | . 2 Traps | -11 -10 ------- Run | Yrd Mat Traps Triggered . | . . Indirectly . | . . Trap Hack Attempts . | . . Triggered . | . . Disarmed . | . . Reprogrammed . | . . Reused . | . . Traps Extracted . | . . Installed . | . . Triggered . | . . Machines | -11 -10 ---------- Run | Yrd Mat Machines Disabled 1 | . 1 Max in Single Turn 1 | . 1 Machines Repaired . | . . Machines Dismantled . | . . Machines Sabotaged . | . . Overloaded Fab Kills . | . . Hacking | -11 -10 --------- Run | Yrd Mat Machines Accessed 1 | . 1 Terminals 1 | . 1 Fabricators . | . . Repair Stations . | . . Recycling Units . | . . Scanalyzers . | . . Garrison Access . | . . Total Hacks 2 | . 2 Successful 2 | . 2 Failed . | . . Catastrophic . | . . Database Lockouts . | . . Manual . | . . Terminals 2 | . 2 Fabricators . | . . Repair Stations . | . . Recycling Units . | . . Scanalyzers . | . . Garrison Access . | . . Terminal Hacks 2 | . 2 Alert Level 1 | . 1 Patrol Status 1 | . 1 Fabricator Hacks . | . . Repair Station Hacks . | . . Recycling Unit Hacks . | . . Scanalyzer . | . . Garrison Access Hacks . | . . Unauthorized Hacks . | . . Terminals . | . . Fabricators . | . . Repair Stations . | . . Recycling Units . | . . Scanalyzers . | . . Garrison Access . | . . Data Cores Recovered . | . . Used . | . . Hacking Detections . | . . Full Trace Events . | . . Feedback Events . | . . Feedback Blocked . | . . Robot Schematics Acquired . | . . Robots Built . | . . Authchips . | . . Time . | . . Total Robot Build Rating . | . . Part Schematics Acquired . | . . Parts Built . | . . Authchips . | . . Time . | . . Total Part Build Rating . | . . Parts Repaired . | . . Time . | . . Parts Recycled . | . . Recycled Matter . | . . Retrieved Matter . | . . Retrieved Components . | . . Parts Scanalyzed . | . . Part Schematics Acquired . | . . Parts Damaged . | . . Bothacking | -11 -10 ------------ Run | Yrd Mat Used RIF Installer . | . . Robots Hacked 1 | . 1 Non-combat . | . . Combat 1 | . 1 Robot Hacks Applied 1 | . 1 parse_system 1 | . 1 Relay Couplers Released . | . . Fabnet Peak Effective % . | . . Robots Rewired . | . . Allies Hacked . | . . Hacks Repelled . | . . Allies | -11 -10 -------- Run | Yrd Mat Total Allies . | . . Largest Group . | . . Highest-Rated Group . | . . Highest-Rated Ally . | . . Total Orders . | . . Ally Attacks . | . . Total Damage . | . . Kills . | . . Allies Corrupted . | . . Allies Melted . | . . Intel | -11 -10 ------- Run | Yrd Mat Active Infowar (turns) 918 | 151 767 Sensors 285 | . 285 Seismic 633 | 151 482 Robot Analysis Total . | . . Derelict Logs Recovered . | . . Drone Launches . | . . Drone Recoveries . | . . Exploration | -11 -10 ------------- Run | Yrd Mat Turns Passed 1094 | 251 843 Spaces Moved 445 | 94 351 Core 153 | 94 59 Treads . | . . Legs . | . . Wheels 232 | . 232 Hover . | . . Flight 60 | . 60 Fastest Speed 37 | 50 37 Average Speed 137 | 221 114 Slowest Speed 250 | 250 250 Overloaded Moves . | . . Propulsion Burnouts . | . . Robots Hopped . | . . Potential Cave-ins . | . . Cave-ins Triggered . | . . Exploration Rate (%) 24 | 8 41 Regions Visited 1 Branch Regions . Pre-discovered Areas . | . . Known Exits Taken . | . . Unknown Exits Taken 1 | 1 . Scrap Searched . | . . Spaces Dug . | . . Terrain Destroyed 10 | . 10 Melee . | . . Projectile 2 | . 2 AOE 8 | . 8 Terrain Rammed . | . . Walls Destroyed . | . . Machines Disabled . | . . Actions | -11 -10 --------- Run | Yrd Mat Total 818 | 118 700 Wait 258 | . 258 Move 444 | 93 351 Hop . | . . Pick Up 20 | 10 10 Fast Attach . | . . Attach 13 | 5 8 Detach 1 | . 1 Swap 2 | . 2 Drop 9 | . 9 Fire 70 | 10 60 Melee 1 | . 1 Ram . | . . Kick . | . . Crush . | . . Escape Stasis . | . . Rewire . | . . Trap . | . . Miscellaneous . | . . Route ------- -11/Scrapyard -10/Materials History --------- Turn | Location | Event 4 | -11/Scrapyard | Discovered new exit (range 16) 252 | -11/Scrapyard | Entered Materials 310 | -10/Materials | Build established: Mutant 751 | -10/Materials | Lost 3 parts (1p2w) 1058 | -10/Materials | Core integrity fell below 50% 1086 | -10/Materials | Core integrity fell below 20% 1095 | -10/Materials | Destroyed by G-47 Trooper with Particle Gun Last Messages --------------- Acquired 10 matter. Acquired Datajack. Bump into an enemy to attack with the active melee weapon. Even while active, melee weapons do not fire together with ranged weapons in the same volley. Acquired 10 matter. Wheel destroyed. Jacked G-34 Mercenary... Right-click on available options for more info. Keyboard players can use Shift-a~z. >>parse_system Reading system data... Datajack destroyed. Welding Torch destroyed. Sensor Array destroyed. Hcp. Battery destroyed. Wheel destroyed. G-34 Mercenary heat short circuits Aluminum Leg. Critical hit (Burn: +37). Map ----- +----------------------------------------------------+ | ????????????????????? ????????????? | | ????????????????###### ##???????????? | | ????????????????? ???????????? | | ?????????????????? #???????????? | | ??????????????????? ########????? | | ????????????????????# # """ #????? | | ????????????????????# # """ #????? | | ????????????????????# # """ #????? | | ????????????????????# + #????? | | ????????????????????# # #????? | | ????????????????????# # #????? | | ????????????????????# ########????? | | ????????????????????# #######?????? | | ????????????????????# T #?? | | #####???????????????# #######?????? | | #???????????????# #???????????? | | #???????????????# #???????????? | | #???????????????# #???????????? | | #???????????????# #???????????? | | ###########?????# ###???????????? | | # """ """ #?????# #?????????????? | | +#### """ """ #?????# #?????????????? | | #?# """ """ #?????# #?????????????? | | #?# #?????# #?????????????? | | #?# #?????# #?###########?? | | #?# #?????# #?#@ g #?? | | ### #?????# #?#g""" """ #?? | | ## ! %* #?????#%### """ """ #?? | | ######+#####?##### ### """ """ #?? | | #??# %% ##### % # # ^ #?? | | #??# %###^ #?? | | #??# !#?#^ #?? | | ###??# ! #?# #?? | | #????# % ##### #?#####+####### | | ###??## ##???## ##????# # # | | ##### #?????# ####### # T # | | #?????# + # | | #?????# # # | | #?????# # # | | ###### ##?????# # # | | +######## #??????#^ """ # # | | ## #??????# """ # # | | """ ## #??????# """ # # | | """ ## #??????# ###### | | """ [ + #?????"" ^ #????? | | ## #?????"Y """ #????? | | ######### #?????"" """ #????? | | ### ###????# """ ###+##????? | | "" # #????# ? #?????????? | | """ # T" #????# ? #?????????? | +----------------------------------------------------+ Best States ------------- Heat Dissipation 25 Energy Generation 10 Energy Capacity 375 Matter Stores 300 Matter Capacity 300 Sight Range 16 Robot Scan Range 14 Terrain Scan Density 10 Evasion (%) 62 Item Schematics ----------------- None Robot Schematics ------------------ None Fabricated ------------ Nothing Repaired ---------- Nothing Alien Tech Used ----------------- None Achievements -------------- Power Corrupts Challenges ------------ None Game ------ Seed JunkGrapheneHumpback Manual? 0 Play Time 00:12:58 Cumulative 4.1 hours Start 2025.10.09 @ 20:17:04 End 2025.10.09 @ 20:29:37 Sessions 1 Manual Loads 0 Difficulty Rogue Special Mode None Game No. 5 Rogue 5 Adventurer 0 Explorer 0 Win Type - Total 0 Types 0/0/0/0/0/0/0/0/0/0 Lore% 2 Gallery% 7 Achievement% 10 Wizard Run 0 Options --------- Layout 1 ASCII 0 Keyboard 0 Movement Mouse Keybinds 0 Fullscreen 0 Font 20/SmallcapsGlow Map View 50x35 Zoom Use 0% Tactical HUD 0 Map Filters NONE Filters NONE Steam 1 RUN: df09480e-4ddb-4e80-9387-6201b5cbf483